[Event "34th GER-ch Seniors-50 2022"]
[Site "Magdeburg"]
[Date "2022.08.17"]
[Round "6.3"]
[White "Pitschka, Claus"]
[Black "De Roda Husman, Juan"]
[Result "0-1"]
[ECO "A42"]
[WhiteElo "2188"]
[BlackElo "2266"]
[Annotator "NA RC"]
[PlyCount "102"]
[EventDate "2022.08.12"]
[EventType "swiss"]
[EventCountry "GER"]
[SourceTitle "playchess.com"]
[Source "ChessBase"]
[SourceQuality "1"]
[TimeControl "40/5400+30:1800+30"]

{[%evp 8,94,45,18,34,33,47,31,31,18,16,-2,29,0,0,-15,0,-20,-9,-22,-5,-10,-8,-10,0,-12,0,-22,-21,-37,-49,-52,-50,-59,-29,-64,-69,-84,-91,-115,-93,-102,-102,-166,-150,-195,-200,-172,-198,-252,-261,-458,-530,-420,-560,-546,-666,-742,-612,-567,-619,-712,-762,-827,-637,-501,-810,-739,-840,-1112,-549,-571,-632,-986,-4556,-1826,-290,-1747,-5406,-8306,-5934,-29971,-423,-402,-258,-260,-299,-512,-12820]} 1. d4 {[%emt 0:02:15]} d6 {[%emt 0:00:11]} 2. e4 {[%emt 0:00:16]} g6 {[%emt 0:00:16]} 3. c4 {[%emt 0:07:48]} Bg7 {[%emt 0:00:45]} 4. Nc3 {[%emt 0:00:35]} Nd7 {[%emt 0:00:33]} 5. g3 {[%emt 0:02:01]} e5 {[%emt 0:01:22]} 6. d5 {[%emt 0:02:58]} Ngf6 {[%emt 0:05:11]} 7. Bg2 {[%emt 0:02:32]} O-O {[%emt 0:00:14]} 8. Be3 {[%emt 0:03:14]} a5 {[%emt 0:04:30]} 9. a3 {[%emt 0:05:21]} Nc5 {[%emt 0:02:48]} (9... c6 $142 $1) 10. Nge2 {[%emt 0:02:24]} Bd7 {[%emt 0:05:39]} 11. O-O {[%emt 0:11:01]} a4 {[%emt 0:03:39]} 12. Bxc5 {[%emt 0:00:25]} dxc5 {[%emt 0:00:13]} 13. d6 {[%emt 0:00:17]} Be6 {[%emt 0:13:10]} 14. dxc7 {[%emt 0:07:25]} Qxc7 {[%emt 0:03:45]} 15. Nd5 {[%emt 0:01:16]} Qa5 {[%emt 0:02:42]} 16. Nec3 {[%emt 0:05:00]} Nxd5 {[%emt 0:03:56]} 17. cxd5 {[%emt 0:02:25]} Bd7 $1 {[%emt 0:00:23]} 18. Re1 {[%emt 0:02:51]} b5 {[%emt 0:05:01]} 19. Rc1 {[%emt 0:04:32]} Bh6 {[%emt 0:04:33]} 20. Rc2 {[%emt 0:00:22]} Rac8 {[%emt 0:03:45]} 21. Ne2 {[%emt 0:07:49]} b4 {[%emt 0:02:34]} 22. Nc1 {[%emt 0:03:20]} bxa3 {[%emt 0:03:48]} 23. bxa3 {[%emt 0:00:14]} c4 {[%emt 0:00:22]} 24. Na2 {[%emt 0:03:18]} c3 {[%emt 0:01:03]} 25. Nb4 {[%emt 0:00:17]} (25. Qe2 $17) 25... Bd2 {[%emt 0:00:32]} 26. Rxd2 {[%emt 0:02:42]} cxd2 {[%emt 0:00:10]} 27. Qxd2 {[%emt 0:00:03]} Qc5 {[%emt 0:01:13]} 28. Qd1 {[%emt 0:13:26]} Qc3 {[%emt 0:01:02]} 29. f4 $2 {[%emt 0:00:23]} (29. Qa1 {was necessary.}) 29... Qxa3 {[%emt 0:02:55]} 30. Nd3 {[%emt 0:00:22]} exf4 {[%emt 0:00:24]} 31. gxf4 {[%emt 0:00:16]} Bb5 {[%emt 0:00:16]} 32. Ne5 {[%emt 0:00:18]} Qc5+ {[%emt 0:00:36]} 33. Kh1 {[%emt 0:00:08]} a3 {[%emt 0:00:34]} 34. Bh3 {[%emt 0:00:50]} Ra8 {[%emt 0:00:45]} 35. Qa1 {[%emt 0:01:20]} Qb4 {[%emt 0:03:45]} 36. Rb1 {[%emt 0:04:08]} Qxe4+ {[%emt 0:06:36]} 37. Bg2 {[%emt 0:00:06] [#]} Qxf4 $1 {[%emt 0:00:19]} 38. Rxb5 {[%emt 0:00:18]} Rfe8 {[%emt 0:05:01]} 39. d6 {[%emt 0:01:51]} Rac8 {[%emt 0:01:06]} 40. Bc6 {[%emt 0:03:02] [#]} Rxc6 $1 {[%emt 0:01:08]} 41. Nxc6 {[%emt 0:30:31]} Qf3+ {[%emt 0:30:35]} 42. Kg1 {[%emt 0:00:06]} Qxc6 {[%emt 0:00:44]} 43. Re5 {[%emt 0:00:15]} Ra8 {[%emt 0:01:27]} 44. Qd4 {[%emt 0:00:32]} Qc1+ {[%emt 0:02:33]} (44... a2 $142 45. Re1 Ra4) 45. Kf2 {[%emt 0:00:46]} a2 {[%emt 0:00:28]} (45... Qc2+ $142 46. Kg3 Qb3+ 47. Kf2 Rd8) 46. d7 {[%emt 0:00:17]} Qc2+ {[%emt 0:01:47]} 47. Kg3 $19 {[%emt 0:00:00]} (47. Re2 {only move.} Qf5+ 48. Kg2 Qxd7 49. Qxd7) 47... Ra3+ {[%emt 0:00:00]} 48. Kf4 {[%emt 0:00:00]} Qxh2+ {[%emt 0:00:00]} 49. Kg5 {[%emt 0:00:00]} Qg3+ {[%emt 0:00:00]} 50. Kf6 {[%emt 0:00:00]} Ra6+ {[%emt 0:00:00]} 51. Ke7 {[%emt 0:00:00]} Qa3+ {[%emt 0:00:00]} 0-1

[Event "34th GER-ch Seniors-50 2022"]
[Site "Magdeburg"]
[Date "2022.08.17"]
[Round "6.4"]
[White "Wacker, Peter"]
[Black "Juegel, Marcel"]
[Result "1-0"]
[ECO "B00"]
[WhiteElo "2263"]
[BlackElo "2126"]
[Annotator "RC"]
[PlyCount "75"]
[EventDate "2022.08.12"]
[EventType "swiss"]
[EventCountry "GER"]
[SourceTitle "playchess.com"]
[Source "ChessBase"]
[SourceQuality "1"]
[TimeControl "40/5400+30:1800+30"]

1. e4 {[%emt 0:00:05]} e6 {[%emt 0:00:13]} 2. Nc3 {[%emt 0:00:10]} b6 {[%emt 0:00:52]} 3. d4 {[%emt 0:00:58]} Bb7 {[%emt 0:00:19]} 4. a3 {[%emt 0:00:09]} Nf6 {[%emt 0:01:59]} 5. Bd3 {[%emt 0:02:52]} d5 {[%emt 0:10:54]} 6. e5 {[%emt 0:01:14]} Nfd7 {[%emt 0:03:27]} 7. Nce2 {[%emt 0:04:30]} Ba6 {[%emt 0:02:04]} 8. Bxa6 {[%emt 0:06:15]} Nxa6 {[%emt 0:00:08]} 9. c4 {[%emt 0:00:31]} c6 {[%emt 0:05:07]} 10. cxd5 {[%emt 0:01:52]} cxd5 {[%emt 0:00:27]} 11. Qd3 {[%emt 0:02:12]} Qc8 {[%emt 0:02:36]} 12. Nf3 {[%emt 0:06:15]} h6 {[%emt 0:01:34]} 13. h4 {[%emt 0:00:26]} Qb7 {[%emt 0:04:41]} 14. Bd2 {[%emt 0:05:33]} Be7 {[%emt 0:02:29]} 15. h5 {[%emt 0:00:46]} Rc8 {[%emt 0:04:29]} 16. g4 {[%emt 0:06:27]} Rc4 {[%emt 0:04:28]} 17. Bc3 {[%emt 0:14:45]} b5 {[%emt 0:08:01]} 18. b3 {[%emt 0:01:29]} Rc6 {[%emt 0:01:56]} 19. Bd2 {[%emt 0:02:18]} b4 {[%emt 0:02:43]} 20. a4 {[%emt 0:00:29]} Nc7 {[%emt 0:01:37]} 21. Be3 {[%emt 0:07:10]} Qa6 {[%emt 0:01:19]} 22. Kd2 {[%emt 0:07:55]} Qxd3+ {[%emt 0:01:32]} 23. Kxd3 {[%emt 0:00:05]} Nb8 {[%emt 0:03:29]} 24. Rac1 {[%emt 0:00:21]} Kd7 {[%emt 0:00:22]} 25. Rxc6 {[%emt 0:00:12]} Nxc6 {[%emt 0:00:13]} 26. Nd2 {[%emt 0:00:17]} Ne8 {[%emt 0:01:49]} 27. f3 {[%emt 0:01:38]} Na5 {[%emt 0:01:09]} 28. f4 {[%emt 0:00:31]} Nc7 {[%emt 0:08:09]} 29. f5 {[%emt 0:03:37]} Na8 {[%emt 0:02:35]} 30. Rf1 {[%emt 0:02:23]} Bg5 {[%emt 0:05:04]} 31. fxe6+ {[%emt 0:01:28]} Kxe6 {[%emt 0:00:35]} 32. Rc1 {[%emt 0:01:01]} Nb6 {[%emt 0:04:51]} 33. Rc7 {[%emt 0:03:06]} a6 {[%emt 0:03:41]} 34. Rc5 {[%emt 0:00:23]} Nxb3 {[%emt 0:05:53]} 35. Rc6+ {[%emt 0:01:06]} Kd7 {[%emt 0:00:05]} 36. Rxb6 {[%emt 0:00:18]} Na1 {[%emt 0:01:15]} 37. Bxg5 {[%emt 0:00:39]} hxg5 {[%emt 0:00:14]} 38. Rxb4 {[%emt 0:00:18]} 1-0

[Event "34th GER-ch Seniors-50 2022"]
[Site "Magdeburg"]
[Date "2022.08.17"]
[Round "6.5"]
[White "Raitza, Olaf"]
[Black "Schatz, Christian"]
[Result "0-1"]
[ECO "B13"]
[WhiteElo "2289"]
[BlackElo "2137"]
[Annotator "RC"]
[PlyCount "72"]
[EventDate "2022.08.12"]
[EventType "swiss"]
[EventCountry "GER"]
[SourceTitle "playchess.com"]
[Source "ChessBase"]
[SourceQuality "1"]
[TimeControl "40/5400+30:1800+30"]

1. e4 {[%emt 0:00:04]} c6 {[%emt 0:00:10]} 2. d4 {[%emt 0:00:11]} d5 {[%emt 0:00:05]} 3. exd5 {[%emt 0:00:13]} cxd5 {[%emt 0:00:10]} 4. Bd3 {[%emt 0:00:16]} Nc6 {[%emt 0:00:15]} 5. c3 {[%emt 0:00:10]} Nf6 {[%emt 0:00:31]} 6. Bf4 {[%emt 0:00:28]} g6 {[%emt 0:00:23]} 7. Nf3 {[%emt 0:03:50]} Bg7 {[%emt 0:00:11]} 8. Qb3 {[%emt 0:01:29]} O-O {[%emt 0:00:53]} 9. O-O {[%emt 0:21:37]} Nh5 {[%emt 0:06:29]} 10. Bc1 {[%emt 0:03:32]} Bg4 {[%emt 0:08:31]} 11. Qxb7 {[%emt 0:12:02]} Na5 {[%emt 0:02:44]} 12. Qa6 {[%emt 0:00:17]} Bxf3 {[%emt 0:01:54]} 13. b4 {[%emt 0:00:47]} Bxg2 {[%emt 0:35:37]} 14. Kxg2 {[%emt 0:00:44]} Qd7 {[%emt 0:01:37]} 15. f3 {[%emt 0:04:24]} Nc6 {[%emt 0:03:46]} 16. Bb5 {[%emt 0:05:48]} Rac8 {[%emt 0:00:26]} 17. Re1 {[%emt 0:06:13]} Rfe8 {[%emt 0:06:10]} 18. Be3 {[%emt 0:08:16]} e5 {[%emt 0:02:06]} 19. Nd2 {[%emt 0:09:20]} e4 {[%emt 0:06:08]} 20. Rf1 {[%emt 0:01:10]} exf3+ {[%emt 0:01:18]} 21. Rxf3 {[%emt 0:00:02]} Rxe3 {[%emt 0:05:21]} 22. Rxe3 {[%emt 0:00:55]} Bh6 {[%emt 0:00:17]} 23. Rae1 {[%emt 0:02:42]} Bxe3 {[%emt 0:00:40]} 24. Rxe3 {[%emt 0:00:01]} Qg4+ {[%emt 0:02:58]} 25. Kh1 {[%emt 0:00:41]} Nf4 {[%emt 0:01:48]} 26. Rg3 {[%emt 0:01:00]} Qe6 {[%emt 0:01:01]} 27. Bf1 {[%emt 0:05:38]} Rc7 {[%emt 0:04:31]} 28. Bg2 {[%emt 0:01:43]} Qe1+ {[%emt 0:01:39]} 29. Nf1 {[%emt 0:00:03]} Re7 {[%emt 0:01:53]} 30. Qxc6 {[%emt 0:05:03]} Nxg2 {[%emt 0:01:35]} 31. Rf3 {[%emt 0:00:02]} Nh4 {[%emt 0:01:18]} 32. Rf4 {[%emt 0:00:30]} g5 {[%emt 0:00:30]} 33. Qc8+ {[%emt 0:00:30]} Kg7 {[%emt 0:00:30]} 34. Qg4 {[%emt 0:07:49]} h6 {[%emt 0:01:58]} 35. Qg1 {[%emt 0:00:00]} Kf8 {[%emt 0:00:30]} 36. Qf2 gxf4 {[%emt 0:00:30]} 0-1

[Event "34th GER-ch Seniors-50 2022"]
[Site "Magdeburg"]
[Date "2022.08.17"]
[Round "6.6"]
[White "Lindam, Ingo"]
[Black "Heck, Norbert"]
[Result "1/2-1/2"]
[ECO "A45"]
[WhiteElo "2130"]
[BlackElo "2249"]
[Annotator "TA"]
[PlyCount "42"]
[EventDate "2022.08.12"]
[EventType "swiss"]
[EventCountry "GER"]
[SourceTitle "playchess.com"]
[Source "ChessBase"]
[SourceQuality "1"]
[TimeControl "40/5400+30:1800+30"]

{[%evp 9,42,-8,8,0,0,-29,38,47,36,19,18,-18,-12,-54,-60,-87,-85,-61,-71,-80,39,22,26,39,44,47,111,0,0,0,0,0,0,19,35]} 1. d4 {[%emt 0:00:02]} Nf6 {[%emt 0:00:13]} 2. Bg5 {[%emt 0:00:07]} Ne4 {[%emt 0:00:26]} 3. h4 {[%emt 0:00:17]} c5 {[%emt 0:00:42]} 4. d5 {[%emt 0:03:30]} Qb6 {[%emt 0:01:36]} 5. Nd2 {[%emt 0:01:11]} Nxd2 {[%emt 0:07:27]} 6. Bxd2 {[%emt 0:00:32] A45: Trompowsky Attack.} Qxb2 {[%emt 0:04:39] 6...e5 is not played anymore.} 7. e4 {[%emt 0:03:29]} d6 {[%emt 0:02:53]} (7... Qe5 $1 $11) 8. Rb1 $14 {[%emt 0:01:19] [#] White is slightly better.} Qf6 $146 {[%emt 0:25:04]} ({Predecessor:} 8... Qe5 9. Bd3 Nd7 10. Nf3 Qh5 11. Bc3 e5 12. dxe6 fxe6 13. Rg1 Be7 14. Bxg7 Rg8 {1-0 (60) Rozman,L (2334)-Costachi,M (2463) Chess.com INT 2022}) 9. Ne2 {[%emt 0:18:56]} e5 {[%emt 0:04:59]} 10. dxe6 {[%emt 0:09:01]} fxe6 {[%emt 0:00:31]} 11. Rb3 {[%emt 0:03:37]} (11. Bc3 $5 {[%cal Rc3f6]} Qf7 12. Ng3 $11) 11... Nc6 {[%emt 0:06:28]} 12. Bg5 {[%emt 0:03:14]} Qf7 {[%emt 0:01:18]} 13. h5 {[%emt 0:11:19]} Qc7 {[%emt 0:06:46]} 14. Qa1 {[%emt 0:07:18]} e5 {[%emt 0:04:12]} ({Black should try} 14... Rg8 $17) 15. Nc3 {[%emt 0:10:55]} Be6 {[%emt 0:00:37]} 16. Nd5 {[%emt 0:02:44]} Bxd5 {[%emt 0:01:01]} 17. exd5 {[%emt 0:00:09]} Nd4 {[%emt 0:00:11] [#]} (17... c4 $1 $14 18. Bxc4 Nd4) 18. Rb2 {[%emt 0:02:08]} ({Only move:} 18. Qb1 $1 $16 Nxb3 19. Bb5+ Kf7 20. cxb3) 18... Be7 $11 {[%emt 0:14:40] The position is equal.} 19. Bxe7 {[%emt 0:03:00]} Qxe7 {[%emt 0:01:34]} ({Much less strong is} 19... Kxe7 20. c3 $16) 20. c3 {[%emt 0:00:27]} Nf5 {[%emt 0:00:32] And now ...0-0 would win.} 21. Bb5+ {[%emt 0:00:45]} Kd8 {[%emt 0:02:16] Weighted Error Value: White=0.17 (very precise) /Black=0.28 (precise)} 1/2-1/2

[Event "34th GER-ch Seniors-50 2022"]
[Site "Magdeburg"]
[Date "2022.08.17"]
[Round "6.7"]
[White "Hirn, Oskar"]
[Black "Wenner, Tobias"]
[Result "1/2-1/2"]
[ECO "A36"]
[WhiteElo "2188"]
[BlackElo "2099"]
[Annotator "TA"]
[PlyCount "76"]
[EventDate "2022.08.12"]
[EventType "swiss"]
[EventCountry "GER"]
[SourceTitle "playchess.com"]
[Source "ChessBase"]
[SourceQuality "1"]
[TimeControl "40/5400+30:1800+30"]

{[%evp 12,76,12,-5,29,34,33,34,68,64,84,85,106,106,110,105,113,109,105,94,97,103,100,62,69,66,69,65,75,74,64,72,60,63,97,91,110,104,103,93,187,156,171,184,183,173,170,155,169,164,154,0,56,0,128,50,57,38,54,0,56,0,56,0,52,0,39]} 1. c4 {[%emt 0:00:44]} Nf6 {[%emt 0:00:12]} 2. Nc3 {[%emt 0:00:27]} g6 {[%emt 0:01:09]} 3. e4 {[%emt 0:01:39]} d6 {[%emt 0:00:10]} 4. g3 {[%emt 0:02:56]} Bg7 {[%emt 0:02:57]} 5. Bg2 {[%emt 0:00:12]} c5 {[%emt 0:00:39]} 6. Nge2 {[%emt 0:00:17]} Nc6 {[%emt 0:00:25]} 7. O-O {[%emt 0:01:27] 7.d3 is the modern continuation.} e5 {[%emt 0:00:46] A36: Symmetrical English vs ...g6: 4 Bg2 Bg7.} 8. d3 {[%emt 0:00:21]} Be6 {[%emt 0:04:08]} 9. Nd5 {[%emt 0:01:42]} Nd4 {[%emt 0:06:46] White is slightly better.} 10. Nxd4 {[%emt 0:01:25] [#]} exd4 $146 {[%emt 0:03:55]} ({Predecessor:} 10... cxd4 11. Qa4+ Bd7 12. Qb4 Nxd5 13. cxd5 Qb6 14. Qa3 O-O 15. Bd2 Rfc8 16. Rfc1 Bf8 {½-½ (56) Nagaran,M (2020)-Boyd,J (1741) San Diego 2004}) 11. b4 {[%emt 0:11:50]} Bxd5 {[%emt 0:03:51]} 12. exd5 {[%emt 0:06:03][%cal Be4d5,Bd5d6][%mdl 32]} O-O {[%emt 0:01:14]} 13. bxc5 {[%emt 0:01:17]} dxc5 {[%emt 0:00:10]} 14. Rb1 {[%emt 0:09:11]} Qd7 {[%emt 0:02:57]} 15. d6 {[%emt 0:05:53]} Rab8 {[%emt 0:05:56]} 16. Qf3 {[%emt 0:01:24]} Ne8 {[%emt 0:05:48]} 17. Qd5 {[%emt 0:13:57]} b6 {[%emt 0:02:56]} 18. Bf4 {[%emt 0:01:25] A strong pair of Bishops.} Rd8 {[%emt 0:00:37]} 19. Rfe1 {[%emt 0:03:03] Re7 is the strong threat. 0x0.0013bc4ac444dp-1022s more active pieces.} ({Don't play} 19. Bg5 Nf6 20. Qf3 Qxd6 $11) 19... Nxd6 {[%emt 0:01:15]} 20. Qxd6 {[%emt 0:00:30]} Qxd6 {[%emt 0:00:30]} 21. Bxd6 {[%emt 0:00:06]} Rxd6 {[%emt 0:00:05]} 22. Re7 {[%emt 0:00:08]} Bf6 {[%emt 0:03:29]} 23. Rxa7 {[%emt 0:00:11]} Re8 {[%emt 0:04:10]} 24. Bd5 {[%emt 0:00:45]} Re7 {[%emt 0:03:04]} 25. Ra6 {[%emt 0:05:07]} Re2 {[%emt 0:00:55]} (25... Kg7 $16 {was worth a try.}) 26. Rbxb6 $18 {[%emt 0:01:41]} ({Much less strong is} 26. Raxb6 $6 Rxb6 27. Rxb6 Be7 $16) 26... Rxb6 {[%emt 0:00:08]} 27. Rxb6 {[%emt 0:00:05][%mdl 4096] Endgame KRB-KRB} Be7 {[%emt 0:00:10]} 28. Rb7 {[%emt 0:11:45] Hoping for Kf1.} Kf8 {[%emt 0:00:27]} 29. a4 {[%emt 0:01:37]} Ra2 {[%emt 0:00:27]} 30. Rb8+ {[%emt 0:00:26]} Kg7 {[%emt 0:00:16] [#]} 31. Rb7 {[%emt 0:01:15]} (31. Re8 $1 $16 {[%cal Re8e7]} Kf6 32. Ra8) 31... Kf8 $14 {[%emt 0:00:32]} 32. Rb8+ {[%emt 0:00:07]} (32. Ra7 $14) 32... Kg7 $16 {[%emt 0:00:05] [#]} 33. Ra8 {[%emt 0:00:27]} (33. Re8 $1 $16 {[%cal Re8e7]} Kf6 34. g4) 33... Ra3 $14 {[%emt 0:01:05]} 34. Ra7 {[%emt 0:05:01]} Kf8 {[%emt 0:00:16]} 35. Ra8+ {[%emt 0:12:43]} Kg7 {[%emt 0:00:08]} 36. Ra7 {[%emt 0:00:28]} Kf8 {[%emt 0:00:06]} 37. Ra8+ {[%emt 0:00:50]} Kg7 {[%emt 0:00:11]} 38. Ra7 {[%emt 0:00:29]} Kf8 $1 {[%emt 0:47:35] Black defended with fortune.  Weighted Error Value: White=0.18 (very precise) /Black=0.09 (flawless)} 1/2-1/2

[Event "34th GER-ch Seniors-50 2022"]
[Site "Magdeburg"]
[Date "2022.08.18"]
[Round "7.1"]
[White "Pirrot, Dieter"]
[Black "Zude, Arno"]
[Result "0-1"]
[ECO "C54"]
[WhiteElo "2328"]
[BlackElo "2371"]
[Annotator "TA"]
[PlyCount "70"]
[EventDate "2022.08.12"]
[EventType "swiss"]
[EventCountry "GER"]
[SourceTitle "playchess.com"]
[Source "ChessBase"]
[SourceQuality "1"]
[TimeControl "40/5400+30:1800+30"]

{[%evp 9,70,11,18,-31,-28,-37,-23,-28,-35,-36,-28,-19,-25,-41,-25,-35,-25,-21,-24,-38,-22,-39,-33,-155,-150,-157,-158,-161,-177,-171,-172,-162,-164,-166,-150,-206,-209,-212,-162,-218,-224,-308,-19,-191,-168,-152,-84,-85,-86,-78,-92,-233,-217,-226,-235,-291,-312,-381,-328,-377,-358,-29982,-5518]} 1. e4 {[%emt 0:00:02]} e5 {[%emt 0:00:10]} 2. Nf3 {[%emt 0:00:08]} Nc6 {[%emt 0:00:06]} 3. Bc4 {[%emt 0:00:17]} Bc5 {[%emt 0:00:13]} 4. c3 {[%emt 0:00:08]} Nf6 {[%emt 0:00:10]} 5. d4 {[%emt 0:00:10]} exd4 {[%emt 0:00:10]} 6. b4 {[%emt 0:00:08] C54: Giuoco Piano: 4 c3 Nf6, main lines with 5 d4 and 5 d3.} (6. cxd4 $11 {should be considered.} Bb4+ 7. Bd2) 6... Bb6 $15 {[%emt 0:00:54]} 7. e5 {[%emt 0:00:29] [#]} d5 $1 {[%emt 0:01:37] And now ...Ne4 would win.} 8. exf6 {[%emt 0:00:12] Black has an edge.} dxc4 {[%emt 0:00:32]} 9. Qe2+ {[%emt 0:00:22] 9.Qe2+ scores better than 9.b5.} Be6 $1 {[%emt 0:05:55]} (9... Kf8 10. b5 Na5 11. Qe5 $11) 10. b5 $1 {[%emt 0:00:21]} ({Much worse is} 10. fxg7 Rg8 11. b5 Ne7 12. cxd4 Rxg7 $17) 10... Na5 {[%emt 0:14:23]} 11. fxg7 {[%emt 0:00:26]} Rg8 {[%emt 0:00:09]} 12. Nxd4 {[%emt 0:00:52]} Rxg7 {[%emt 0:03:26]} 13. Nxe6 {[%emt 0:01:07]} fxe6 {[%emt 0:00:08]} 14. O-O $1 {[%emt 0:00:12]} Qd5 {[%emt 0:05:28][%csl Gg7,LRb5,LRg2][%cal Rd5g2] Active counter play!} 15. g3 {[%emt 0:00:12]} O-O-O {[%emt 0:00:24] [#]} 16. Bf4 $146 {[%emt 0:09:16]} (16. Nd2 $15) ({Predecessor:} 16. a4 Nb3 17. Ra2 Nxc1 18. Rxc1 Rdg8 19. Qf1 Qf3 {0-1 (19) Lopukhin,A-Smirnov,A Russia 1997}) 16... Rf7 $1 $36 {[%emt 0:05:11][%cal Of7f4][%mdl 2048] Hoping for ...Rxf4! Black is in control.} (16... Qxb5 17. Na3 Qa4 18. Nc2 $11) 17. Bh6 {[%emt 0:31:27]} Rf6 {[%emt 0:28:46]} 18. Bg7 {[%emt 0:03:16]} Rg6 {[%emt 0:01:45]} 19. Be5 {[%emt 0:00:45]} Qxb5 {[%emt 0:02:15] ...Nc6 is the strong threat.} 20. Na3 {[%emt 0:01:42][%cal Bb1a3,Ba3c2,Bc2e1,Be1f3,Bf3e5][%mdl 32]} Qa4 {[%emt 0:03:31]} 21. Nc2 {[%emt 0:00:43]} Nc6 {[%emt 0:01:32]} 22. Bf4 {[%emt 0:01:54]} (22. Ne1 $17) 22... Rd3 $19 {[%emt 0:04:44]} 23. Ne1 {[%emt 0:02:31]} Rxc3 {[%emt 0:03:56]} 24. Bd2 {[%emt 0:07:36]} (24. Qh5 $142 Nd4 25. Qxh7 Ne2+ 26. Kh1 Qc6+ 27. f3) 24... Ra3 {[%emt 0:09:07]} 25. Qh5 {[%emt 0:03:13]} Rg7 {[%emt 0:01:13]} ({And not} 25... Rxa2 26. Rxa2 Qxa2 27. Qxh7 Rxg3+ 28. hxg3 Qxd2 29. Nf3 $17) ({Black should play} 25... Nd4 $19 {Strongly threatening ...Qc6.} 26. Qxh7 Qe8) 26. Bg5 $2 {[%emt 0:05:56]} (26. Bc1 $1 $11) 26... Rd7 {[%emt 0:01:38][%cal Bg7d7,Bd7d5,Bd5d8][%mdl 32]} 27. Nf3 {[%emt 0:01:29][%cal Of3e5]} Nd8 {[%emt 0:02:18]} (27... Rxa2 $2 28. Qe8+ Nd8 29. Bxd8 $1 (29. Rxa2 Qxa2 30. Ne5 Rd5 $11) 29... Bxf2+ 30. Kh1 Rxd8 31. Qxa4 Rxa4 32. Rxa4 $18) (27... a5 $142 $1 {aiming for ...Rd5.} 28. Ne5 Rd5 29. Qe8+ Nd8) 28. Ne5 $17 {[%emt 0:04:40]} Rd5 {[%emt 0:00:28]} 29. Bxd8 {[%emt 0:03:23]} Rxd8 {[%emt 0:00:10]} 30. Rad1 {[%emt 0:03:08] [#]} (30. Qg4 $17) 30... Rad3 $1 $19 {[%emt 0:00:31]} 31. Nxd3 {[%emt 0:10:02]} cxd3 {[%emt 0:00:01]} 32. Qxh7 {[%emt 0:01:22]} d2 {[%emt 0:00:50]} 33. Qb1 {[%emt 0:01:50]} Qc4 {[%emt 0:01:05]} 34. Qb3 {[%emt 0:00:29]} Qe2 {[%emt 0:00:37] White must now prevent ...Rf8.} 35. Qc3 $2 {[%emt 0:02:38] [#]} (35. Kg2 $19 Rf8 36. Rb1) 35... Bxf2+ $1 {[%emt 0:00:26][%mdl 512] Weighted Error Value: White=0.53/Black=0.20 (precise)} 0-1

[Event "34th GER-ch Seniors-50 2022"]
[Site "Magdeburg"]
[Date "2022.08.18"]
[Round "7.2"]
[White "De Roda Husman, Juan"]
[Black "Wacker, Peter"]
[Result "1/2-1/2"]
[ECO "C60"]
[WhiteElo "2266"]
[BlackElo "2263"]
[Annotator "TA"]
[PlyCount "54"]
[EventDate "2022.08.12"]
[EventType "swiss"]
[EventCountry "GER"]
[SourceTitle "playchess.com"]
[Source "ChessBase"]
[SourceQuality "1"]
[TimeControl "40/5400+30:1800+30"]

{[%evp 11,54,60,69,43,55,49,56,50,49,33,49,29,27,27,27,14,32,-16,0,-18,-9,-22,-15,-15,0,0,0,-6,35,32,70,28,24,26,39,31,178,168,168,41,197,23,49,47,54]} 1. e4 {[%emt 0:00:03]} e5 {[%emt 0:00:08]} 2. Nf3 {[%emt 0:00:11]} Nc6 {[%emt 0:00:07]} 3. Bb5 {[%emt 0:00:12]} g6 {[%emt 0:00:21]} 4. c3 {[%emt 0:00:56]} d6 {[%emt 0:01:17]} 5. d4 {[%emt 0:04:16]} Bd7 {[%emt 0:00:13]} 6. O-O {[%emt 0:01:18]} Bg7 {[%emt 0:00:09]} 7. Re1 {[%emt 0:02:14] C60: Ruy Lopez: Unusual Black 3rd moves and 3...g6.} Qe7 {[%emt 0:05:12]} 8. h3 {[%emt 0:09:01]} Nf6 {[%emt 0:00:20] [#]} 9. d5 $146 {[%emt 0:02:24]} ({Predecessor:} 9. Bg5 Rd8 10. Nbd2 h6 11. Be3 Nh5 12. d5 Nb8 13. Be2 a6 14. c4 Rf8 15. Rc1 {½-½ (47) Keizers,P-Pots,A Haarlem 2004}) 9... Nb8 {[%emt 0:00:16]} 10. Bf1 {[%emt 0:00:23]} O-O {[%emt 0:00:47]} 11. c4 {[%emt 0:01:20]} a5 {[%emt 0:00:18]} 12. Nc3 {[%emt 0:00:54]} Na6 {[%emt 0:00:40]} 13. Be3 {[%emt 0:00:53]} Ne8 {[%emt 0:05:20]} 14. Nd2 {[%emt 0:03:49]} (14. a3 $14) 14... f5 $11 {[%emt 0:06:01]} 15. exf5 {[%emt 0:00:25]} gxf5 {[%emt 0:02:26] [#] Strongly threatening ...f4.} 16. f4 {[%emt 0:00:12]} b6 {[%emt 0:04:16]} 17. Nf3 {[%emt 0:06:51]} Nc5 {[%emt 0:21:41]} 18. Rc1 {[%emt 0:07:35]} e4 {[%emt 0:05:16]} 19. Nd4 {[%emt 0:01:36]} Nf6 {[%emt 0:00:38]} 20. b3 {[%emt 0:03:09]} Qf7 {[%emt 0:02:56]} 21. a3 {[%emt 0:02:38][%cal Ba2a3,Ba3b4][%mdl 32]} Nh5 {[%emt 0:01:57]} 22. b4 {[%emt 0:06:44]} axb4 {[%emt 0:05:58]} 23. axb4 {[%emt 0:00:10]} Na4 {[%emt 0:01:25]} (23... Nxf4 $14 24. bxc5 (24. Bxf4 Nd3 $11) 24... bxc5) 24. Ncb5 $18 {[%emt 0:04:21]} Rfc8 {[%emt 0:03:58]} 25. Qb3 {[%emt 0:06:59]} ({White should play} 25. Be2 $18 Ng3 26. Qb3) 25... Ng3 {[%emt 0:04:12] [#]} (25... Bxb5 $14 26. Nxb5 Qg6) 26. Ra1 $2 {[%emt 0:02:07]} (26. Rc2 $18) 26... Nxf1 {[%emt 0:03:21]} 27. Rxf1 {[%emt 0:01:22]} Nc5 $1 {[%emt 0:00:25] Weighted Error Value: White=0.34/Black=0.26 (precise)} 1/2-1/2